bitfinex/quotes_SOLUSD_20250907
["timestamp","ask_amount","ask_price","bid_price","bid_amount"]
[1757235385634,12.73875429,203.57,203.56,0.74]
[1757235385833,8.82553473,203.57,203.56,0.74]
[1757235386058,12.73875429,203.57,203.56,0.74]
[1757235386354,4.91231517,203.57,203.56,0.74]
[1757235388968,4.97231517,203.57,203.56,0.74]
[1757235392146,4.97231517,203.57,203.56,4.2555283]
[1757235393049,0.06,203.57,203.56,4.2555283]
[1757235398859,0.06,203.57,203.56,8.16874786]
[1757235399450,0.06,203.58,203.57,3.91321956]
[1757235399650,0.06,203.58,203.57,8.13874786]
[1757235400468,0.06,203.58,203.57,13.1101799]
[1757235401369,0.06,203.58,203.57,9.19696034]
[1757235401572,0.06,203.58,203.57,13.1101799]
[1757235401745,0.06,203.58,203.57,8.13874786]
[1757235401950,0.06,203.58,203.57,10.10594485]
[1757235407976,0.06,203.58,203.57,47.74594485]
[1757235410667,0.06,203.58,203.57,3.5155283]
[1757235414056,0.06,203.58,203.57,4.2155283]
[1757235421401,0.06,203.58,203.57,3.5155283]
[1757235421599,0.06,203.58,203.57,4.2155283]
[1757235423884,0.06,203.58,203.57,3.5155283]
[1757235424700,0.06,203.58,203.57,4.2455283]
[1757235432902,0.06,203.58,203.57,3.5455283]
[1757235433794,0.06,203.58,203.57,4.2455283]
[1757235434311,0.06,203.58,203.57,3.5455283]
[1757235434611,0.06,203.58,203.57,4.2455283]
[1757235437904,0.06,203.58,203.57,6.74925923]
[1757235439110,0.06,203.58,203.57,4.2455283]
[1757235439412,0.06,203.58,203.57,6.74925923]
[1757235444711,0.06,203.58,203.57,4.2455283]
[1757235467947,0.06,203.58,203.57,4.25462515]
[1757235471123,0.06,203.6,203.58,4.91207387]
[1757235471326,6.99503898,203.63,203.62,39.59559401]
[1757235471536,6.27503898,203.63,203.62,88.4228494]
[1757235471740,0.06,203.7,203.66,39.59559401]
[1757235471926,0.06,203.7,203.66,88.2328494]
[1757235472232,0.06,203.7,203.66,89.39386383]
[1757235472556,0.06,203.72,203.67,13.59559401]
[1757235472728,0.06,203.72,203.66,37.71826982]
[1757235472729,0.69,203.71,203.68,41.68462515]
[1757235472926,8.10262779,203.7,203.69,3.52462515]
[1757235473126,4.90918016,203.7,203.69,3.52462515]
[1757235473342,5.59918016,203.7,203.69,3.52462515]
[1757235477146,5.59918016,203.7,203.69,41.64462515]
[1757235478744,5.59918016,203.7,203.69,3.52462515]
[1757235478951,5.59918016,203.7,203.69,41.64462515]
[1757235481153,4.96869821,203.72,203.69,41.64462515]
[1757235481350,0.69,203.71,203.7,3.64550936]
[1757235484846,4.90918016,203.7,203.69,38.12]
[1757235485039,4.90918016,203.7,203.69,41.76321111]
[1757235487041,5.59893917,203.71,203.69,41.76321111]
[1757235487258,5.59893917,203.71,203.7,3.64321111]
[1757235492054,5.59893917,203.71,203.7,41.64043668]
[1757235494451,5.59893917,203.71,203.7,3.64043668]
[1757235494770,5.59893917,203.71,203.7,41.62043668]
[1757235497447,4.90893917,203.71,203.7,41.62043668]
[1757235499268,4.90893917,203.71,203.7,37.98]
[1757235499471,4.90893917,203.71,203.7,41.62062991]
[1757235505480,5.57893917,203.71,203.7,41.62062991]
[1757235505773,4.90893917,203.71,203.7,41.62062991]
[1757235509284,4.90893917,203.71,203.7,42.33062991]
[1757235509758,4.90893917,203.71,203.7,41.62062991]
[1757235510161,9.545933,203.72,203.7,41.62909882]
[1757235510387,4.96869821,203.72,203.71,3.64909882]
[1757235510963,5.63869821,203.72,203.71,3.64909882]
[1757235511585,9.545933,203.72,203.71,3.64909882]
[1757235512080,5.63869821,203.72,203.71,3.64909882]
[1757235512382,9.545933,203.72,203.71,3.64909882]
[1757235514677,8.875933,203.72,203.71,3.64909882]
[1757235515379,4.96869821,203.72,203.71,3.64909882]
[1757235516280,0.06,203.72,203.71,3.64909882]
[1757235516859,0.73,203.72,203.71,3.64909882]
[1757235517287,5.63869821,203.72,203.71,3.64909882]
[1757235521473,0.06,203.72,203.71,4.35909882]
[1757235521674,0.06,203.73,203.71,4.35909882]
[1757235521893,0.06,203.73,203.72,42.19909882]
[1757235524588,0.06,203.73,203.72,38.55]
[1757235524808,0.06,203.73,203.72,42.21584146]
[1757235526384,3.96723479,203.73,203.72,42.21584146]
[1757235526703,0.06,203.73,203.72,42.21584146]
[1757235535593,0.06,203.73,203.72,42.21287967]
[1757235535910,3.96723479,203.73,203.72,3.66287967]
[1757235536209,4.61723479,203.73,203.72,3.66287967]
[1757235536804,9.52569206,203.73,203.72,3.66287967]
[1757235547113,9.52569206,203.73,203.72,3.69287967]
[1757235547712,8.11905466,203.73,203.72,3.69287967]
[1757235548804,5.61845727,203.73,203.72,3.69287967]
[1757235549000,8.11905466,203.73,203.72,3.69287967]
[1757235549315,0.06,203.73,203.72,4.37287967]
[1757235549696,0.0120652,203.73,203.72,4.37287967]
[1757235557100,0.0120652,203.73,203.72,42.13287967]
[1757235557932,0.06,203.74,203.72,42.13287967]
[1757235558133,0.06,203.74,203.73,4.34287967]
[1757235559425,0.06,203.74,203.73,41.42287967]
[1757235559627,0.67209529,203.74,203.73,41.42287967]
[1757235559835,0.01209529,203.74,203.73,41.42287967]
[1757235563830,0.01209529,203.74,203.73,3.66287967]
[1757235564032,0.67209529,203.74,203.73,3.66287967]
[1757235564212,0.67209529,203.74,203.73,41.40287967]
[1757235565817,0.01209529,203.74,203.73,41.40287967]
[1757235568642,0.01209529,203.74,203.73,42.09287967]
[1757235569848,0.01209529,203.74,203.73,41.40287967]
[1757235571046,0.01209529,203.74,203.73,44.20352137]
[1757235575454,0.01209529,203.74,203.73,44.85352137]
[1757235578243,0.01209529,203.74,203.73,44.83352137]
[1757235578855,0.01209529,203.74,203.73,44.14352137]
[1757235579331,0.67209529,203.74,203.73,44.14352137]
[1757235579526,0.01209529,203.74,203.73,44.14352137]
[1757235583356,0.01209529,203.74,203.73,41.34287967]
[1757235583557,0.01209529,203.74,203.73,44.14455477]
[1757235584251,0.72,203.75,203.73,44.14455477]
[1757235584433,0.72,203.75,203.74,6.46455477]
[1757235584751,0.06,203.75,203.74,7.15455477]
[1757235584951,0.06,203.75,203.74,7.09788627]
[1757235585350,0.06,203.75,203.74,6.40788627]
[1757235586755,0.72,203.75,203.74,6.40788627]
[1757235588061,0.06,203.75,203.74,6.40788627]
[1757235588247,0.72,203.75,203.74,6.40788627]
[1757235588743,0.06,203.75,203.74,6.40788627]
[1757235589070,0.06,203.75,203.74,44.06788627]
[1757235589247,0.76,203.75,203.74,44.06788627]
[1757235590042,0.06,203.75,203.74,44.06788627]
[1757235594265,3.20059739,203.76,203.74,44.04788627]
[1757235594559,3.20059739,203.76,203.75,6.40788627]
[1757235596476,8.10833197,203.76,203.75,6.40788627]
[1757235596774,8.10833197,203.76,203.75,44.02788627]
[1757235597146,8.10833197,203.76,203.75,6.40788627]
[1757235597956,20.37766844,203.76,203.72,0.03]
[1757235598270,17.87707105,203.76,203.73,2.80666084]
[1757235598474,0.7,203.75,203.74,0.03]
[1757235598670,5.60797546,203.75,203.74,0.03]
[1757235599677,8.10857285,203.75,203.74,0.03]
[1757235609471,9.51594479,203.75,203.74,0.03]
[1757235610464,8.81594479,203.75,203.74,0.03]
[1757235610665,8.81594479,203.75,203.74,0.74]
[1757235610867,8.81594479,203.75,203.74,0.03]
[1757235612184,9.51594479,203.75,203.74,0.03]
[1757235615888,9.57594479,203.75,203.74,0.03]
[1757235623194,8.87594479,203.75,203.74,0.03]
[1757235624377,9.54594479,203.75,203.74,0.03]
[1757235625386,8.87594479,203.75,203.74,0.03]
[1757235628774,9.54594479,203.75,203.74,0.03]
[1757235630200,8.83668002,203.75,203.74,0.03]
[1757235630998,9.50668002,203.75,203.74,0.03]
[1757235631697,11.47310334,203.75,203.74,0.03]
[1757235632090,62.68869735,203.75,203.74,0.03]
[1757235641206,13.59559401,203.74,203.71,0.03]
[1757235641410,3.90796933,203.72,203.71,0.03]
[1757235641895,8.48593866,203.72,203.71,0.03]
[1757235642104,10.45265203,203.72,203.71,0.03]
[1757235644400,11.45338091,203.72,203.71,0.03]
[1757235648811,15.36135024,203.72,203.71,0.03]
[1757235656415,145.89559401,203.71,203.69,0.03]
[1757235656723,3.90796933,203.68,203.67,1e-08]
[1757235657521,5.87506957,203.68,203.67,1e-08]
[1757235658307,10.78473178,203.68,203.67,0.70000001]
[1757235658509,10.78473178,203.68,203.67,1e-08]
[1757235660125,10.78473178,203.68,203.67,0.70000001]
[1757235660623,6.87676245,203.68,203.67,0.70000001]
[1757235660802,10.78473178,203.68,203.67,0.70000001]
[1757235661213,8.81763154,203.68,203.67,0.70000001]
[1757235663513,10.78453834,203.68,203.67,0.70000001]
[1757235667120,10.84453834,203.68,203.67,1e-08]
[1757235669421,9.43912975,203.68,203.67,1e-08]
[1757235674237,7.47222295,203.68,203.67,0.70000001]
[1757235674534,7.47222295,203.68,203.67,4.10585639]
[1757235675636,7.57727996,203.68,203.67,4.10585639]
[1757235676918,7.57727996,203.68,203.67,4.10764882]
[1757235679644,7.57727996,203.68,203.67,3.40764882]
[1757235680927,7.57727996,203.68,203.67,4.11764882]
[1757235681239,7.57727996,203.68,203.67,3.40764882]
[1757235686940,8.26727996,203.68,203.67,3.40764882]
[1757235687122,7.57727996,203.68,203.67,3.40764882]
[1757235688550,5.07471922,203.68,203.67,3.40764882]
[1757235688739,7.57660726,203.68,203.67,3.40764882]
[1757235691655,13.59559401,203.67,203.66,0.03]
[1757235691944,16.09748205,203.67,203.66,0.03]
[1757235692124,16.78748205,203.67,203.66,0.03]
[1757235692325,18.75477579,203.67,203.66,0.03]
[1757235692830,23.66467906,203.67,203.66,0.03]
[1757235693550,45.72179131,203.67,203.66,0.03]
[1757235694164,47.6889883,203.67,203.66,0.03]
[1757235695547,47.79336886,203.67,203.66,0.03]
[1757235696128,13.59559401,203.66,203.64,0.03]
[1757235696323,40.12188804,203.65,203.64,0.03]
[1757235696727,40.81188804,203.65,203.64,0.03]
[1757235696951,42.77927855,203.65,203.64,0.03]
[1757235698229,47.68966401,203.65,203.64,0.03]
[1757235701755,145.89559401,203.64,203.57,0.03]
[1757235701941,7.41396191,203.58,203.57,0.03]
[1757235702360,7.41396191,203.58,203.57,0.74]
[1757235708270,7.41396191,203.58,203.57,0.03]
[1757235708458,5.60207387,203.58,203.57,0.03]
[1757235708772,8.10396191,203.58,203.57,0.03]
[1757235709446,7.41396191,203.58,203.57,0.03]
[1757235715558,7.50495001,203.58,203.57,0.03]
[1757235717482,5.00306197,203.58,203.57,0.03]
[1757235717778,7.50495001,203.58,203.57,0.03]
[1757235720762,0.0909881,203.58,203.57,0.75]
[1757235726087,7.50495001,203.58,203.57,0.03]
[1757235726586,2.59287614,203.58,203.57,0.75]
[1757235727090,7.50495001,203.58,203.57,0.75]
[1757235727266,7.50495001,203.58,203.57,0.03]
[1757235731578,8.91572872,203.58,203.57,0.03]
[1757235732291,9.62572872,203.58,203.57,0.03]
[1757235732595,5.71306197,203.58,203.57,0.03]
[1757235732891,11.59369998,203.58,203.57,0.03]
[1757235733092,9.62572872,203.58,203.57,0.03]
[1757235735179,5.62207387,203.58,203.57,0.03]
[1757235735388,9.53474062,203.58,203.57,0.03]
[1757235735687,9.64148419,203.58,203.57,0.03]
[1757235739207,11.60945546,203.58,203.57,0.03]
[1757235742896,9.64148419,203.58,203.57,0.03]
[1757235744700,47.26148419,203.58,203.57,0.03]
[1757235747087,49.22955229,203.58,203.57,0.03]
[1757235752914,36.89955229,203.58,203.57,0.03]
[1757235753217,34.93148419,203.58,203.57,0.03]
[1757235754087,35.62148419,203.58,203.57,0.03]
[1757235754714,73.24148419,203.58,203.57,0.03]
[1757235754905,75.20955229,203.58,203.57,0.03]
[1757235755211,75.10280872,203.58,203.57,0.03]
[1757235755599,75.20927645,203.58,203.57,0.03]
[1757235759730,34.93120835,203.58,203.57,0.69]
[1757235760617,5.0185416,203.58,203.57,0.69]
[1757235760793,8.93120835,203.58,203.57,0.69]
[1757235762505,8.93120835,203.58,203.57,0.03]
[1757235762705,9.62120835,203.58,203.57,0.03]
[1757235769919,8.93120835,203.58,203.57,0.75]
[1757235770228,8.93120835,203.58,203.57,0.03]
[1757235770416,9.61120835,203.58,203.57,0.03]
[1757235770925,47.23120835,203.58,203.57,0.03]
[1757235773728,0.10646773,203.58,203.57,0.75]
[1757235774701,0.10646773,203.58,203.57,4.66266675]
[1757235775315,4.97130168,203.62,203.57,4.66266675]
[1757235775535,4.97130168,203.62,203.58,0.72]
[1757235775834,0.10783353,203.59,203.58,0.72]
[1757235781036,5.01966613,203.59,203.57,0.03]
[1757235782116,5.01966613,203.59,203.57,0.75]
[1757235782925,5.69966613,203.59,203.57,0.03]
[1757235784141,3.91266675,203.58,203.57,0.03]
[1757235784345,4.59266675,203.58,203.57,0.03]
[1757235785031,9.50474062,203.58,203.57,0.03]
[1757235787758,4.91207387,203.58,203.57,0.03]
[1757235790361,5.59207387,203.58,203.57,0.03]
[1757235792940,4.91207387,203.58,203.57,0.03]
[1757235795652,5.00687804,203.58,203.57,0.03]
[1757235797965,5.68687804,203.58,203.57,0.03]
[1757235798560,0.09480417,203.58,203.57,3.2540242]
[1757235798867,0.15802381,203.62,203.6,26.0]
[1757235799163,4.96938576,203.7,203.61,3.2240242]
[1757235799352,4.96938576,203.7,203.62,2.5040242]
[1757235799558,4.96938576,203.7,203.62,6.64653084]
[1757235799756,4.96938576,203.7,203.62,8.61324421]
[1757235799953,0.06,203.7,203.62,8.61324421]
[1757235800156,0.06,203.7,203.65,39.59559401]
[1757235800345,0.06,203.7,203.66,13.59559401]
[1757235800544,0.06,203.7,203.66,20.23875053]
[1757235800869,0.06,203.7,203.66,22.20478725]
[1757235802050,0.06,203.7,203.66,27.1149316]
[1757235805664,0.06,203.7,203.66,65.1749316]
[1757235805841,0.06,203.7,203.66,65.66594603]
[1757235811563,0.06,203.7,203.69,39.59559401]
[1757235811760,0.06,203.7,203.69,94.04578944]
[1757235811970,0.06,203.7,203.69,94.74578944]
[1757235812169,0.06,203.7,203.69,94.76578944]
[1757235812373,0.06,203.7,203.69,96.73153631]
[1757235814177,0.06,203.7,203.69,101.64095748]
[1757235814382,0.06,203.7,203.69,101.15001537]
[1757235815576,0.15623293,203.7,203.69,101.15001537]
[1757235816981,0.15623293,203.7,203.69,100.41001537]
[1757235818682,0.15623293,203.7,203.69,100.38262024]
[1757235819777,0.15623293,203.7,203.69,100.36262024]
[1757235820581,0.15032307,203.72,203.7,13.59559401]
[1757235820801,0.15032307,203.72,203.71,49.27559447]
[1757235821088,0.09383331,203.74,203.72,13.59559401]
[1757235821271,0.09383331,203.74,203.73,57.94220112]
[1757235821476,0.09383331,203.74,203.73,58.64220112]
[1757235821783,0.09383331,203.74,203.73,60.60756164]
[1757235821985,0.09383331,203.74,203.73,22.66756164]
[1757235822287,0.09383331,203.74,203.73,60.62756164]
[1757235822877,0.09383331,203.74,203.73,65.53601891]
[1757235823787,0.14993546,203.76,203.74,13.59559401]
[1757235823980,0.14993546,203.76,203.74,17.7073312]
[1757235824179,0.14993546,203.76,203.74,58.1713554]
[1757235824364,0.14993546,203.76,203.74,60.13652281]
[1757235824869,0.14993546,203.76,203.74,65.04473916]
[1757235825489,0.14993546,203.76,203.74,27.08473916]
[1757235825691,0.14993546,203.76,203.74,65.02473916]
[1757235826589,0.14993546,203.76,203.74,69.93594409]
[1757235829297,0.14993546,203.76,203.74,31.99594409]
[1757235829486,0.14993546,203.76,203.74,69.91594409]
[1757235829686,0.14993546,203.76,203.74,69.21594409]
[1757235832684,0.82265711,203.75,203.74,53.09632588]
[1757235832889,0.82265711,203.75,203.74,50.69213373]
[1757235833601,0.82265711,203.75,203.74,50.67213373]
[1757235833806,0.82265711,203.75,203.74,7.8809288]
[1757235834103,0.82265711,203.75,203.74,45.7809288]
[1757235835192,0.73,203.75,203.74,7.8809288]
[1757235835389,0.73,203.75,203.74,45.7809288]
[1757235835598,0.83718758,203.75,203.74,45.7809288]
[1757235839789,0.83718758,203.75,203.74,45.8109288]
[1757235844111,0.83718758,203.75,203.74,5.4069046]
[1757235844300,0.83718758,203.75,203.74,45.7509288]
[1757235845120,0.83718758,203.75,203.74,43.2469046]
[1757235845317,0.83718758,203.75,203.74,45.7509288]
[1757235846214,0.83718758,203.75,203.74,7.9109288]
[1757235846401,0.83718758,203.75,203.74,45.7509288]
[1757235847516,0.83718758,203.75,203.74,45.7309288]
[1757235850511,0.83718758,203.75,203.74,45.7309288]
[1757235850712,0.83718758,203.75,203.74,45.76073235]
[1757235851326,0.83718758,203.75,203.74,43.25670815]
[1757235851525,0.83718758,203.75,203.74,5.43670815]
[1757235851742,0.83718758,203.75,203.74,43.23670815]
[1757235854002,0.83718758,203.75,203.74,5.43670815]
[1757235854203,0.83718758,203.75,203.74,43.21670815]
[1757235854403,0.83718758,203.75,203.74,43.21955004]
[1757235854611,0.16718758,203.75,203.74,43.21955004]
[1757235855319,0.06,203.75,203.74,43.21955004]
[1757235855515,0.06,203.75,203.74,82.90418203]
[1757235855826,0.06,203.77,203.76,39.59559401]
[1757235856020,0.06,203.77,203.76,85.31430451]
[1757235856216,0.06,203.77,203.76,86.00430451]
[1757235856530,0.05896081,203.79,203.77,13.59559401]
[1757235856720,0.05896081,203.79,203.78,67.32438263]
[1757235856912,0.05896081,203.79,203.78,68.01438263]
[1757235857228,0.05896081,203.79,203.78,73.88291138]
[1757235858808,0.05896081,203.79,203.78,78.79016429]
[1757235861228,0.05896081,203.79,203.78,92.3857583]
[1757235861925,0.05896081,203.79,203.78,54.5057583]
[1757235862126,0.05896081,203.79,203.78,78.06016429]
[1757235862332,0.70896081,203.79,203.78,78.06016429]
[1757235862513,0.70896081,203.79,203.78,5.40935696]
[1757235862828,5.61597293,203.79,203.78,41.28438263]
[1757235863122,9.51952735,203.79,203.78,41.30438263]
[1757235865006,9.51952735,203.79,203.78,3.44438263]
[1757235865208,9.51952735,203.79,203.78,41.30438263]
[1757235868735,5.61597293,203.79,203.78,41.30438263]
[1757235869237,0.70896081,203.79,203.78,41.30438263]
[1757235869732,0.05896081,203.79,203.78,41.30438263]
[1757235869919,0.70896081,203.79,203.78,41.30438263]
[1757235872830,0.70896081,203.79,203.78,41.29256892]
[1757235875840,0.70896081,203.79,203.78,41.32256892]
[1757235877639,5.61597293,203.79,203.78,3.46256892]
[1757235877846,5.61597293,203.79,203.78,41.26256892]
[1757235880538,5.61597293,203.79,203.78,3.46256892]
[1757235880747,5.61597293,203.79,203.78,41.24256892]
[1757235883142,0.70896081,203.79,203.78,41.24256892]
[1757235883646,0.70896081,203.79,203.78,41.22256892]
[1757235884651,0.05896081,203.79,203.78,41.22256892]
[1757235886541,0.70896081,203.79,203.78,41.22256892]
[1757235886840,0.70896081,203.79,203.78,3.46256892]
[1757235887046,5.61597293,203.79,203.78,41.20256892]
[1757235892749,9.51952735,203.79,203.78,41.20256892]
[1757235893346,9.51952735,203.79,203.78,3.46256892]
[1757235893648,9.51952735,203.79,203.78,41.18256892]
[1757235894959,5.61597293,203.79,203.78,41.18256892]
[1757235895140,9.51952735,203.79,203.78,41.18256892]
[1757235897645,9.51952735,203.79,203.78,3.46256892]
[1757235897835,9.51952735,203.79,203.78,41.16256892]
[1757235898034,9.51952735,203.79,203.78,3.46256892]
[1757235901260,21.78705765,203.79,203.75,37.73]
[1757235901461,3.90355442,203.76,203.75,37.73]
[1757235901642,0.72,203.76,203.75,37.73]
[1757235901837,4.62355442,203.76,203.75,37.73]
[1757235902157,4.62355442,203.76,203.75,0.03]
[1757235903846,9.531289,203.76,203.75,0.03]
[1757235904045,0.72,203.76,203.75,0.03]
[1757235904269,12.32649111,203.79,203.75,37.73]
[1757235904270,4.90754566,203.77,203.75,37.73]
[1757235904564,4.90754566,203.77,203.75,38.39]
[1757235904764,4.90754566,203.77,203.75,37.73]
[1757235905265,0.05896081,203.79,203.76,0.66]
[1757235905660,0.05896081,203.79,203.76,4.56355442]
[1757235905856,0.05896081,203.79,203.77,0.66]
[1757235906057,0.05896081,203.79,203.78,37.7]
[1757235908357,0.05896081,203.79,203.78,47.17080733]
[1757235908557,0.05896081,203.79,203.78,65.73311695]
[1757235909061,0.04741202,203.8,203.78,47.23027003]
[1757235909263,0.04741202,203.8,203.79,4.56355442]
[1757235909564,0.04741202,203.8,203.79,38.36]
[1757235909865,0.04741202,203.8,203.79,41.60355442]
[1757235910067,0.04741202,203.8,203.79,37.7]
[1757235910263,0.04741202,203.8,203.78,4.96671561]
[1757235910566,0.76741202,203.8,203.79,37.7]
[1757235911355,5.67418336,203.8,203.79,37.7]
[1757235911742,0.76741202,203.8,203.79,37.7]
[1757235913066,0.04741202,203.8,203.79,37.7]
[1757235915842,0.04741202,203.8,203.79,38.36]
[1757235916059,0.04741202,203.8,203.79,40.85825976]
[1757235916263,0.04741202,203.8,203.79,42.82342717]
[1757235918969,0.02741202,203.8,203.79,42.82342717]
[1757235923877,0.02741202,203.8,203.79,61.3260333]
[1757235926277,0.02741202,203.8,203.79,56.41902118]
[1757235927756,0.02741202,203.8,203.79,53.92076142]
[1757235928662,0.02741202,203.8,203.79,27.96516741]
[1757235928862,0.02741202,203.8,203.79,65.62516741]
[1757235929278,0.02741202,203.8,203.79,27.96516741]
[1757235929466,3.24454665,203.8,203.75,0.03]
[1757235929672,2.49713463,203.79,203.75,0.03]
[1757235929981,2.49713463,203.78,203.76,63.66]
[1757235930178,3.21713463,203.78,203.76,63.66]
[1757235930370,0.72,203.78,203.76,63.66]
[1757235930555,2.49713463,203.79,203.76,63.69]
[1757235930761,0.72,203.78,203.76,63.69]
[1757235931766,2.49713463,203.77,203.76,63.69]
[1757235933579,3.21713463,203.77,203.76,63.69]
[1757235933783,2.49713463,203.77,203.76,63.69]
[1757235933986,3.21713463,203.77,203.76,63.69]
[1757235934167,2.49713463,203.77,203.76,63.69]
[1757235934875,3.21713463,203.77,203.76,63.69]
[1757235935084,2.49713463,203.77,203.76,63.69]
[1757235937994,2.49713463,203.77,203.76,66.18713463]
[1757235939191,2.49713463,203.78,203.76,66.18713463]
[1757235940894,0.72,203.79,203.76,66.18713463]
[1757235941101,0.02741202,203.8,203.76,66.87713463]
[1757235941398,0.02741202,203.8,203.77,0.69]
[1757235941570,0.02741202,203.8,203.78,37.66]
[1757235942570,0.02741202,203.8,203.78,38.35]
[1757235942773,0.02741202,203.8,203.79,1.96507086]
[1757235944900,0.02741202,203.8,203.79,2.65507086]
[1757235945966,0.00741202,203.8,203.79,1.96507086]
[1757235946165,0.00741202,203.8,203.79,27.96507086]
[1757235946369,0.72741202,203.8,203.79,27.96507086]
[1757235946593,0.72741202,203.8,203.79,65.62507086]
[1757235947767,0.72741202,203.8,203.79,1.96507086]
[1757235947993,0.72741202,203.8,203.79,37.66]
[1757235949372,0.72741202,203.8,203.79,40.21713463]
[1757235950815,3.22454665,203.8,203.79,37.64]
[1757235951976,0.00741202,203.8,203.79,37.64]
[1757235955493,0.67741202,203.8,203.79,37.64]
[1757235956802,0.67741202,203.8,203.79,40.19713463]
[1757235957100,0.67741202,203.8,203.79,37.64]
[1757235957787,0.00741202,203.8,203.79,37.64]
[1757235958097,0.00741202,203.8,203.78,7.46344229]
[1757235958297,0.00741202,203.8,203.79,37.64]
[1757235958795,0.67741202,203.8,203.78,7.46344229]
[1757235959000,2.50454665,203.8,203.79,37.64]
[1757235959499,3.17454665,203.8,203.79,37.64]
[1757235959898,0.67741202,203.8,203.79,37.64]
[1757235960082,3.17454665,203.8,203.79,37.64]
[1757235961996,8.08131799,203.8,203.79,37.64]
[1757235962394,8.08131799,203.8,203.76,0.03]
[1757235962699,2.49713463,203.78,203.77,37.64]
[1757235962898,3.16713463,203.78,203.77,37.64]
[1757235964699,0.67,203.78,203.77,37.64]
[1757235964896,4.91418336,203.8,203.77,37.64]
[1757235964897,7.41131799,203.8,203.77,37.64]
[1757235965107,0.67,203.79,203.77,37.64]
[1757235965304,0.00741202,203.8,203.77,38.3]
[1757235966096,0.00741202,203.8,203.77,37.64]
[1757235966290,0.00741202,203.8,203.78,0.66]
[1757235966497,0.00741202,203.8,203.77,37.64]
[1757235966498,0.00741202,203.8,203.79,37.64]
[1757235967194,0.00741202,203.8,203.79,38.3]
[1757235968304,0.06,203.81,203.79,38.3]
[1757235968804,0.06,203.81,203.79,40.26516741]
[1757235972510,0.06,203.81,203.79,39.60516741]
[1757235972824,0.06,203.81,203.79,37.64]
[1757235974999,0.73,203.81,203.79,37.64]
[1757235976617,0.06,203.81,203.8,0.66]
[1757235977519,0.06,203.81,203.8,2.62497433]
[1757235978307,0.01274017,203.81,203.8,2.62497433]
[1757235980221,0.01274017,203.81,203.8,1.96497433]
[1757235980524,0.01274017,203.81,203.8,1.99497433]
[1757235981424,0.01274017,203.81,203.8,0.03]
[1757235982308,0.01274017,203.81,203.8,1.99497433]
[1757235983510,0.01274017,203.81,203.8,0.03]
[1757235987611,0.01274017,203.81,203.8,37.67]
[1757235988533,0.06,203.82,203.8,37.67]
[1757235988834,0.06,203.82,203.8,39.63487781]
[1757235990605,0.06,203.82,203.8,40.34487781]
[1757235991132,0.06,203.82,203.8,39.63487781]
[1757235991435,0.06,203.82,203.8,39.40887781]
[1757235991832,0.06,203.82,203.81,0.71]
[1757235992833,0.00146758,203.83,203.81,6.31834163]
[1757235993035,0.00146758,203.83,203.82,41.28365684]
[1757235993333,0.00146758,203.83,203.82,41.99365684]
[1757235993728,0.00146758,203.83,203.82,41.28365684]
[1757235993939,0.00146758,203.83,203.82,41.99365684]
[1757235994114,0.00146758,203.83,203.82,43.95834163]
[1757235995539,0.00146758,203.83,203.82,43.24834163]
[1757235996415,0.00146758,203.83,203.82,57.55393564]
[1757235996629,0.06,203.84,203.82,82.4602255]
[1757235996824,0.06,203.84,203.83,4.84426175]
[1757235997135,0.00912844,203.84,203.83,4.84426175]
[1757235997308,0.00912844,203.84,203.83,4.13426175]
[1757235997510,0.06,203.85,203.84,39.59559401]
[1757235997735,0.06,203.85,203.84,81.58925085]
[1757235998239,0.06,203.85,203.84,83.55345326]
[1757235998437,0.53169371,203.91,203.84,83.55345326]
[1757235998614,9.00647978,203.93,203.85,3.64365684]
[1757235998931,0.2,203.93,203.89,26.0]
[1757235999119,0.2,203.93,203.9,41.28365684]
[1757235999331,0.2,203.93,203.91,3.64365684]
[1757235999633,0.2,203.93,203.92,41.28365684]
[1757236003239,0.86,203.93,203.92,41.28365684]
[1757236004536,5.7636434,203.93,203.92,3.64365684]
[1757236004828,5.7636434,203.93,203.92,41.28365684]
[1757236005030,5.1036434,203.93,203.92,41.28365684]
[1757236005636,5.7636434,203.93,203.92,41.26365684]